bitfinex/quotes_BTCUSD_20241021
["timestamp","ask_amount","ask_price","bid_price","bid_amount"]
[1729551182760,0.14909,67826.0,67825.0,0.16242404]
[1729551184653,0.15409,67826.0,67825.0,0.01346489]
[1729551184858,0.16787156,67826.0,67825.0,0.01346489]
[1729551185068,0.15409,67826.0,67825.0,0.009]
[1729551185276,0.28277138,67826.0,67825.0,0.009]
[1729551185686,0.34894853,67826.0,67825.0,0.009]
[1729551186151,0.28277138,67826.0,67825.0,0.005]
[1729551186553,0.28477138,67826.0,67825.0,0.005]
[1729551186753,0.35094853,67826.0,67825.0,0.005]
[1729551186994,0.34894853,67826.0,67825.0,0.005]
[1729551187197,0.28277138,67826.0,67825.0,0.005]
[1729551187401,0.13533538,67826.0,67817.0,0.22124383]
[1729551187602,0.11524026,67819.0,67818.0,0.14895915]
[1729551187781,0.11524026,67819.0,67818.0,0.15342404]
[1729551188900,0.11524026,67819.0,67818.0,0.14895915]
[1729551189112,0.26869126,67819.0,67818.0,0.006]
[1729551189608,0.62211688,67819.0,67818.0,0.006]
[1729551189821,0.57305377,67819.0,67818.0,0.006]
[1729551190063,0.50687662,67819.0,67818.0,0.006]
[1729551190300,0.50687662,67819.0,67818.0,0.011]
[1729551190740,0.8671631,67819.0,67818.0,0.011]
[1729551190996,0.89422295,67819.0,67818.0,0.011]
[1729551191215,0.94016836,67819.0,67818.0,0.011]
[1729551191658,0.94016836,67819.0,67818.0,0.005]
[1729551191886,0.005,67816.0,67814.0,0.000827]
[1729551192088,0.18924812,67815.0,67814.0,0.000827]
[1729551192299,0.26980905,67815.0,67814.0,0.000827]
[1729551192507,0.005,67815.0,67814.0,0.000827]
[1729551192714,0.15246,67815.0,67814.0,0.00532542]
[1729551193335,0.15246,67815.0,67814.0,0.001827]
[1729551194191,0.15246,67815.0,67814.0,0.000827]
[1729551194641,0.15246,67815.0,67814.0,0.004827]
[1729551194857,0.24276,67815.0,67814.0,0.004827]
[1729551195290,0.15246,67815.0,67814.0,0.007827]
[1729551195734,0.005,67815.0,67814.0,0.007827]
[1729551196468,0.12024026,67816.0,67814.0,0.15678615]
[1729551196685,0.005,67816.0,67814.0,0.15678615]
[1729551196900,0.005,67816.0,67815.0,0.00448866]
[1729551197129,0.005,67816.0,67815.0,0.08528866]
[1729551197419,0.16410025,67820.0,67815.0,0.23424781]
[1729551197638,0.005,67817.0,67816.0,0.14895915]
[1729551198085,0.005,67817.0,67816.0,0.15344781]
[1729551198297,0.147443,67823.0,67816.0,0.15344781]
[1729551198733,0.005,67820.0,67816.0,0.15344781]
[1729551198937,0.005,67820.0,67816.0,0.15544781]
[1729551199372,0.005,67820.0,67816.0,0.16144781]
[1729551199834,0.005,67820.0,67816.0,0.15544781]
[1729551200058,0.147444,67823.0,67816.0,0.15544781]
[1729551200059,0.01876751,67824.0,67817.0,0.147454]
[1729551200286,0.28144677,67825.0,67818.0,0.14895915]
[1729551200511,0.005,67822.0,67818.0,0.15344781]
[1729551200743,0.08154522,67826.0,67818.0,0.37469164]
[1729551200986,0.08154522,67826.0,67819.0,0.43299126]
[1729551200987,0.001,67820.0,67819.0,0.43299126]
[1729551201241,0.001654,67826.0,67819.0,0.76160915]
[1729551201450,0.001654,67826.0,67820.0,0.29640715]
[1729551201884,0.001654,67826.0,67821.0,0.00447307]
[1729551202100,0.001654,67826.0,67822.0,0.14895915]
[1729551202734,0.11689426,67826.0,67823.0,0.00447307]
[1729551202937,0.11689426,67826.0,67824.0,0.14895915]
[1729551203375,0.11689426,67826.0,67825.0,0.00447307]
[1729551203589,0.11689426,67826.0,67825.0,0.15343222]
[1729551205150,0.11689426,67826.0,67825.0,0.15743222]
[1729551205587,0.11689426,67826.0,67825.0,0.16043222]
[1729551205791,0.26933026,67826.0,67825.0,0.16043222]
[1729551205995,0.12189426,67826.0,67825.0,0.16043222]
[1729551221676,0.12189426,67826.0,67825.0,0.15595915]
[1729551222085,0.12189426,67826.0,67825.0,0.16042413]
[1729551225147,0.26933026,67826.0,67825.0,0.16042413]
[1729551225352,0.28311256,67826.0,67825.0,0.15595915]
[1729551226812,0.28311256,67826.0,67825.0,0.15595915]
[1729551227387,0.26933026,67826.0,67825.0,0.16042413]
[1729551227556,0.28312016,67826.0,67825.0,0.15595915]
[1729551228814,0.13568416,67826.0,67825.0,0.15595915]
[1729551229423,0.13568416,67826.0,67825.0,0.16042413]
[1729551229558,0.26933026,67826.0,67825.0,0.16042413]
[1729551230195,0.12189426,67826.0,67825.0,0.16042413]
[1729551230773,0.26933026,67826.0,67825.0,0.16042413]
[1729551233076,0.12189426,67826.0,67825.0,0.16042413]
[1729551237125,0.13569201,67826.0,67825.0,0.16042413]
[1729551237696,0.13569154,67826.0,67825.0,0.15595915]
[1729551237897,0.13569154,67826.0,67825.0,0.16042564]
[1729551239350,0.13569154,67826.0,67825.0,0.15595915]
[1729551240573,0.17976302,67826.0,67825.0,0.15595915]
[1729551241434,0.17976781,67826.0,67825.0,0.15595915]
[1729551241660,0.17982466,67826.0,67825.0,0.15595915]
[1729551242325,0.13569633,67826.0,67825.0,0.15595915]
[1729551242954,0.20188883,67826.0,67825.0,0.15595915]
[1729551243132,0.08664857,67826.0,67825.0,0.15595915]
[1729551243551,0.08664857,67826.0,67825.0,0.16042564]
[1729551244210,0.180446,67821.0,67820.0,0.000827]
[1729551244418,0.180446,67821.0,67819.0,0.000827]
[1729551244419,0.42092952,67820.0,67819.0,0.000827]
[1729551244640,0.66573057,67820.0,67819.0,0.000827]
[1729551244844,0.62985103,67820.0,67819.0,0.000827]
[1729551245053,0.96359139,67820.0,67819.0,0.000827]
[1729551245290,0.8146392,67820.0,67819.0,0.000827]
[1729551246368,0.81442395,67820.0,67819.0,0.000827]
[1729551247268,0.94661898,67820.0,67819.0,0.000827]
[1729551248311,0.81442395,67820.0,67819.0,0.000827]
[1729551249413,0.76843978,67820.0,67819.0,0.000827]
[1729551250061,0.38400011,67820.0,67819.0,0.000827]
[1729551250284,0.49924037,67820.0,67819.0,0.000827]
[1729551250501,0.47719174,67820.0,67819.0,0.000827]
[1729551250764,0.47219174,67820.0,67819.0,0.000827]
[1729551250974,0.587432,67820.0,67819.0,0.000827]
[1729551251191,0.73639115,67820.0,67819.0,0.000827]
[1729551251405,0.62092693,67820.0,67819.0,0.000827]
[1729551251615,0.73616719,67820.0,67819.0,0.000827]
[1729551252068,0.62092693,67820.0,67819.0,0.000827]
[1729551252282,0.73096655,67820.0,67819.0,0.000827]
[1729551252842,0.73089875,67820.0,67819.0,0.000827]
[1729551254059,0.7361196,67820.0,67819.0,0.000827]
[1729551255736,0.72233921,67820.0,67819.0,0.000827]
[1729551256155,0.82406377,67820.0,67819.0,0.000827]
[1729551256589,0.59358325,67820.0,67819.0,0.000827]
[1729551256799,0.82406377,67820.0,67819.0,0.000827]
[1729551259614,0.82406545,67820.0,67819.0,0.000827]
[1729551260245,0.73606172,67820.0,67819.0,0.000827]
[1729551260680,0.57363296,67820.0,67819.0,0.000827]
[1729551260910,0.73601905,67820.0,67819.0,0.000827]
[1729551262208,0.57363296,67820.0,67819.0,0.000827]
[1729551263317,0.4246765,67820.0,67819.0,0.000827]
[1729551263761,0.37541453,67820.0,67819.0,0.000827]
[1729551263970,0.4686633,67820.0,67819.0,0.000827]
[1729551264193,0.005,67820.0,67819.0,0.37353715]
[1729551264411,0.005,67820.0,67819.0,0.37766252]
[1729551264859,0.005,67820.0,67819.0,0.59890635]
[1729551265092,0.001654,67826.0,67819.0,0.59890635]
[1729551265093,0.001654,67826.0,67825.0,0.321338]
[1729551265301,0.001654,67826.0,67825.0,0.47443639]
[1729551266606,0.002654,67826.0,67825.0,0.48343639]
[1729551267911,0.002654,67826.0,67825.0,0.49443639]
[1729551269589,0.002654,67826.0,67825.0,0.49943639]
[1729551269819,0.002654,67826.0,67825.0,0.49443639]
[1729551273573,0.002654,67826.0,67825.0,0.49943639]
[1729551278144,0.002654,67826.0,67825.0,0.49443639]
[1729551278596,0.002654,67826.0,67825.0,0.49943639]
[1729551279524,0.002654,67826.0,67825.0,0.49443639]
[1729551279974,0.002654,67826.0,67825.0,0.49943639]
[1729551283342,0.002654,67826.0,67825.0,0.50779632]
[1729551290260,0.002654,67826.0,67825.0,0.50279632]
[1729551290489,0.002654,67826.0,67825.0,0.40519632]
[1729551293067,0.002654,67826.0,67825.0,0.49719632]
[1729551299105,0.002654,67826.0,67825.0,0.32889632]
[1729551304804,0.11789426,67826.0,67825.0,0.17309839]
[1729551305230,0.26533026,67826.0,67825.0,0.17309839]
[1729551305902,0.11789426,67826.0,67825.0,0.17309839]
[1729551307216,0.002654,67826.0,67825.0,0.16895915]
[1729551307432,0.002654,67826.0,67825.0,0.17300238]
[1729551309194,0.32689421,67826.0,67825.0,0.17300238]
[1729551309420,0.41929421,67826.0,67825.0,0.17300238]
[1729551309618,0.41929421,67826.0,67825.0,0.16895915]
[1729551310024,0.36273026,67826.0,67825.0,0.16895915]
[1729551310226,0.36273026,67826.0,67825.0,0.17300448]
[1729551310840,0.36273026,67826.0,67825.0,0.02404533]
[1729551311275,0.36273026,67826.0,67825.0,0.02]
[1729551312518,0.45700295,67826.0,67825.0,0.02]
[1729551312736,0.5732449,67826.0,67825.0,0.02]
[1729551313581,0.5722449,67826.0,67825.0,0.011]
[1729551313782,0.45900295,67826.0,67825.0,0.011]
[1729551313989,0.147441,67824.0,67820.0,0.000827]
[1729551314302,0.005,67821.0,67820.0,0.000827]
[1729551314531,0.152446,67821.0,67820.0,0.000827]
[1729551314811,0.005,67821.0,67820.0,0.000827]
[1729551315051,0.152446,67821.0,67820.0,0.000827]
[1729551315260,0.152446,67821.0,67820.0,0.002827]
[1729551315854,0.152446,67821.0,67820.0,0.000827]
[1729551315993,0.152446,67821.0,67820.0,0.005827]
[1729551316585,0.005,67821.0,67820.0,0.008827]
[1729551316999,0.005,67821.0,67820.0,0.005827]
[1729551317201,0.006,67821.0,67820.0,0.011827]
[1729551317634,0.001,67821.0,67820.0,0.011827]
[1729551317841,0.001,67821.0,67820.0,0.01588738]
[1729551318327,0.001,67821.0,67820.0,0.16484653]
[1729551318543,0.001,67821.0,67820.0,0.31229553]
[1729551319199,0.001,67821.0,67820.0,0.16484653]
[1729551320079,0.006,67821.0,67820.0,0.16484653]
[1729551321534,0.007654,67821.0,67820.0,0.16484653]
[1729551322180,0.002654,67821.0,67820.0,0.16484653]
[1729551322402,0.007654,67821.0,67820.0,0.16484653]
[1729551324375,0.0779823,67821.0,67820.0,0.16484653]
[1729551325081,0.41686856,67821.0,67820.0,0.01588738]
[1729551325316,0.56903097,67821.0,67820.0,0.01588738]
[1729551325534,0.56903097,67821.0,67820.0,0.011827]
[1729551325535,0.79745412,67821.0,67820.0,0.011827]
[1729551325763,0.81949216,67821.0,67820.0,0.011827]
[1729551326181,0.81948901,67821.0,67820.0,0.011827]
[1729551326840,0.84248901,67821.0,67820.0,0.011827]
[1729551327560,0.73246464,67821.0,67820.0,0.011827]
[1729551327787,0.73246464,67821.0,67820.0,0.006827]
[1729551328009,0.73146464,67821.0,67820.0,0.000827]
[1729551328234,0.73146464,67821.0,67820.0,0.002827]
[1729551328460,0.73146464,67821.0,67820.0,0.004827]
[1729551328680,0.81939415,67821.0,67820.0,0.002827]
[1729551328926,0.82625137,67821.0,67820.0,0.002827]
[1729551329145,0.190449,67820.0,67819.0,0.000827]
[1729551329361,0.59154052,67815.0,67814.0,0.000827]
[1729551329611,0.8994564,67815.0,67814.0,0.000827]
[1729551329831,0.78959382,67815.0,67814.0,0.000827]
[1729551330051,0.94859004,67815.0,67814.0,0.000827]
[1729551330266,0.98431851,67815.0,67814.0,0.000827]
[1729551330492,1.09414126,67815.0,67814.0,0.000827]
[1729551330715,1.05134267,67815.0,67814.0,0.000827]
[1729551331433,1.05134267,67815.0,67814.0,0.001827]
[1729551331434,0.99330578,67815.0,67814.0,0.001827]
[1729551331667,1.05730812,67815.0,67814.0,0.001827]
[1729551331887,1.05130812,67815.0,67814.0,0.000827]
[1729551332116,0.361062,67814.0,67812.0,0.000826]
[1729551332344,0.81782986,67814.0,67812.0,0.000826]
[1729551332576,0.7080414,67814.0,67812.0,0.000826]
[1729551333012,0.81782986,67814.0,67812.0,0.000826]
[1729551333448,0.82282986,67814.0,67812.0,0.000826]
[1729551333644,0.7130414,67814.0,67812.0,0.000826]
[1729551333859,0.71299591,67814.0,67812.0,0.000826]
[1729551334072,0.71799591,67814.0,67812.0,0.000826]
[1729551334503,0.80576313,67814.0,67812.0,0.000826]
[1729551336483,0.71799591,67814.0,67812.0,0.000826]
[1729551337618,0.55570413,67814.0,67812.0,0.000826]
[1729551337843,0.55568665,67814.0,67812.0,0.000826]
[1729551338697,0.62148674,67814.0,67812.0,0.000826]
[1729551339144,0.55568665,67814.0,67812.0,0.000826]
[1729551339562,0.62148556,67814.0,67812.0,0.000826]
[1729551340207,0.55568665,67814.0,67812.0,0.000826]
[1729551341301,0.71763329,67814.0,67812.0,0.000826]
[1729551342396,0.55568665,67814.0,67812.0,0.000826]
[1729551342603,0.62149147,67814.0,67812.0,0.000826]
[1729551342838,0.55568665,67814.0,67812.0,0.000826]
[1729551344212,0.005,67805.0,67795.0,0.22124383]
[1729551344423,0.29072126,67805.0,67795.0,0.22124383]
[1729551344653,0.29072126,67805.0,67804.0,0.00492735]
[1729551344861,0.40596152,67805.0,67804.0,0.000826]
[1729551345543,0.40596152,67805.0,67804.0,0.003826]
[1729551345774,0.40596152,67805.0,67804.0,0.007826]
[1729551346207,0.29072126,67805.0,67804.0,0.007826]
[1729551346414,0.3044478,67805.0,67804.0,0.004826]
[1729551346617,0.29072126,67805.0,67804.0,0.004826]
[1729551347048,0.29072126,67805.0,67804.0,0.000826]
[1729551347256,0.29372126,67805.0,67804.0,0.000826]
[1729551347463,0.30745004,67805.0,67804.0,0.000826]
[1729551348118,0.31045004,67805.0,67804.0,0.000826]
[1729551348322,0.30745004,67805.0,67804.0,0.000826]
[1729551348963,0.43118024,67805.0,67804.0,0.000826]
[1729551349434,0.431182,67805.0,67804.0,0.000826]
[1729551352049,0.41745146,67805.0,67804.0,0.000826]
[1729551352919,0.43119488,67805.0,67804.0,0.000826]
[1729551353138,0.41745146,67805.0,67804.0,0.000826]
[1729551353557,0.43119453,67805.0,67804.0,0.000826]
[1729551357114,0.43121877,67805.0,67804.0,0.000826]
[1729551357568,0.41745146,67805.0,67804.0,0.000826]
[1729551357804,0.43122357,67805.0,67804.0,0.000826]
[1729551358431,0.31049337,67805.0,67804.0,0.000826]
[1729551360422,0.28749337,67805.0,67804.0,0.000826]
[1729551362204,0.30952775,67805.0,67804.0,0.000826]
[1729551362420,0.28749337,67805.0,67804.0,0.000826]
[1729551362631,0.30952775,67805.0,67804.0,0.000826]
[1729551362839,0.28749337,67805.0,67804.0,0.000826]
[1729551363041,0.30952775,67805.0,67804.0,0.000826]
[1729551363257,0.28749337,67805.0,67804.0,0.000826]
[1729551363518,0.30952775,67805.0,67804.0,0.000826]
[1729551363723,0.28749337,67805.0,67804.0,0.000826]
[1729551363935,0.30952775,67805.0,67804.0,0.000826]
[1729551364148,0.28749337,67805.0,67804.0,0.000826]
[1729551364353,0.35545881,67805.0,67804.0,0.000826]
[1729551364602,0.33342443,67805.0,67804.0,0.000826]
[1729551364815,0.35545881,67805.0,67804.0,0.000826]
[1729551365239,0.51463817,67805.0,67804.0,0.000826]
[1729551365494,0.70856687,67805.0,67804.0,0.000826]
[1729551365709,0.89283086,67805.0,67804.0,0.000826]
[1729551365936,0.80495266,67805.0,67804.0,0.000826]
[1729551366586,0.91480041,67805.0,67804.0,0.000826]
[1729551367937,0.91481729,67805.0,67804.0,0.000826]
[1729551368175,0.89294311,67805.0,67804.0,0.000826]
[1729551368419,0.57448902,67805.0,67804.0,0.000826]
[1729551368623,0.77770285,67805.0,67804.0,0.000826]
[1729551369084,0.6287437,67805.0,67804.0,0.000826]
[1729551369522,0.54077013,67805.0,67804.0,0.000826]
[1729551369795,0.65061788,67805.0,67804.0,0.000826]
[1729551370206,0.62761788,67805.0,67804.0,0.000826]
[1729551370576,0.51777013,67805.0,67804.0,0.000826]
[1729551370748,0.49572498,67805.0,67804.0,0.000826]
[1729551370960,0.51777013,67805.0,67804.0,0.000826]
[1729551371176,0.49572498,67805.0,67804.0,0.000826]
[1729551371390,0.51777013,67805.0,67804.0,0.000826]
[1729551371586,0.49572498,67805.0,67804.0,0.000826]
[1729551371890,0.51777013,67805.0,67804.0,0.000826]
[1729551372079,0.49572498,67805.0,67804.0,0.000826]
[1729551372314,0.51777013,67805.0,67804.0,0.000826]
[1729551372516,0.49572498,67805.0,67804.0,0.000826]
[1729551374059,0.64468413,67805.0,67804.0,0.000826]
[1729551374176,0.66672928,67805.0,67804.0,0.000826]
[1729551374788,0.51777013,67805.0,67804.0,0.000826]
[1729551374984,0.48194676,67805.0,67804.0,0.000826]
[1729551375186,0.51777152,67805.0,67804.0,0.081526]
[1729551375445,0.49572551,67805.0,67804.0,0.081526]
[1729551375770,0.49621003,67805.0,67804.0,0.081526]
[1729551380343,0.64516918,67805.0,67804.0,0.081526]
[1729551380581,0.51825604,67805.0,67804.0,0.081526]
[1729551380799,0.33343107,67805.0,67804.0,0.081526]
[1729551381017,0.49626888,67805.0,67804.0,0.081526]
[1729551383820,0.45033782,67805.0,67804.0,0.081526]
[1729551384890,0.48795592,67805.0,67804.0,0.081526]
[1729551385156,0.45033782,67805.0,67804.0,0.081526]
[1729551385377,0.45033782,67805.0,67804.0,0.181226]
[1729551385594,0.560616,67805.0,67804.0,0.181226]
[1729551385806,0.560616,67805.0,67804.0,0.18534027]
[1729551386032,0.560616,67805.0,67804.0,0.181226]
[1729551386288,0.44733782,67805.0,67804.0,0.181226]
[1729551386515,0.557616,67805.0,67804.0,0.181226]
[1729551386744,0.55761955,67805.0,67804.0,0.181226]
[1729551386963,0.55461955,67805.0,67804.0,0.181226]
[1729551387402,0.44434137,67805.0,67804.0,0.182226]
[1729551389375,0.44434137,67805.0,67804.0,0.082526]
[1729551389598,0.55460289,67805.0,67804.0,0.082526]
[1729551389824,0.44434137,67805.0,67804.0,0.082526]
[1729551390504,0.44434137,67805.0,67804.0,0.001826]
[1729551392531,0.55460177,67805.0,67804.0,0.001826]
[1729551393438,0.55460177,67805.0,67804.0,0.00593435]
[1729551393663,0.55460177,67805.0,67804.0,0.001826]
[1729551394157,0.27809821,67805.0,67804.0,0.001826]
[1729551394384,0.29187842,67805.0,67804.0,0.00593435]
[1729551394593,0.43935942,67805.0,67804.0,0.001826]
[1729551394825,0.29187842,67805.0,67804.0,0.00593435]
[1729551394964,0.29187842,67805.0,67804.0,0.001826]
[1729551395266,0.43935942,67805.0,67804.0,0.00593435]
[1729551395445,0.43935942,67805.0,67804.0,0.001826]
[1729551396058,0.70645832,67805.0,67804.0,0.001826]
[1729551396260,0.73550622,67805.0,67804.0,0.001826]
[1729551396473,0.78143772,67805.0,67804.0,0.001826]
[1729551397028,0.78943772,67805.0,67804.0,0.000826]
[1729551397455,0.79643772,67805.0,67804.0,0.001826]
[1729551397665,0.78943772,67805.0,67804.0,0.000826]
[1729551397890,0.79242701,67805.0,67804.0,0.000826]
[1729551398100,0.80242701,67805.0,67804.0,0.001826]
[1729551398312,0.79942701,67805.0,67804.0,0.001826]
[1729551398750,0.80442701,67805.0,67804.0,0.002826]
[1729551399896,0.93663954,67805.0,67804.0,0.002826]
[1729551400128,0.80442701,67805.0,67804.0,0.002826]
[1729551401223,0.9366028,67805.0,67804.0,0.002826]
[1729551401431,0.80442701,67805.0,67804.0,0.002826]
[1729551401678,0.93659904,67805.0,67804.0,0.002826]
[1729551401894,0.80440303,67805.0,67804.0,0.002826]
[1729551402109,0.76860961,67805.0,67804.0,0.002826]
[1729551402349,0.80440283,67805.0,67804.0,0.002826]
[1729551405928,0.76838071,67805.0,67804.0,0.002826]
[1729551406156,0.80416591,67805.0,67804.0,0.002826]
[1729551406867,0.80616591,67805.0,67804.0,0.002826]
[1729551408243,0.93830993,67805.0,67804.0,0.002826]
[1729551410963,0.93829718,67805.0,67804.0,0.002826]
[1729551412452,0.93629718,67805.0,67804.0,0.002826]
[1729551413073,0.90051198,67805.0,67804.0,0.002826]
[1729551414469,0.93628759,67805.0,67804.0,0.002826]
[1729551415968,0.93626668,67805.0,67804.0,0.002826]
[1729551416553,0.85536668,67805.0,67804.0,0.002826]
[1729551417024,0.85736668,67805.0,67804.0,0.002826]
[1729551417224,0.85736668,67805.0,67789.0,0.000834]
[1729551417225,0.152514,67790.0,67789.0,0.000834]
[1729551417441,0.67867301,67790.0,67789.0,0.000834]
[1729551417655,0.56858046,67790.0,67789.0,0.00500413]
[1729551417865,0.56858046,67790.0,67789.0,0.000834]
[1729551418287,0.71753961,67790.0,67789.0,0.000834]
[1729551419112,0.56858046,67790.0,67789.0,0.000834]
[1729551419736,0.57058046,67790.0,67789.0,0.000834]
[1729551419961,0.6586026,67790.0,67789.0,0.000834]
[1729551420174,0.178514,67790.0,67789.0,0.000834]
[1729551420387,0.43320831,67790.0,67789.0,0.000834]
[1729551420647,0.43320831,67790.0,67789.0,0.100634]
[1729551420860,0.17045405,67790.0,67789.0,0.100634]
[1729551421061,0.05201281,67790.0,67789.0,0.25380927]
[1729551421277,0.05201281,67790.0,67789.0,0.47962527]
[1729551421278,0.003,67790.0,67789.0,0.47962527]
[1729551421781,0.003,67790.0,67789.0,0.49067621]
[1729551422461,0.001,67790.0,67789.0,0.49067621]
[1729551422919,0.003,67790.0,67789.0,0.47962527]
[1729551423128,0.002,67790.0,67789.0,0.49067723]
[1729551423345,0.005,67794.0,67792.0,0.147509]
[1729551423564,0.005,67794.0,67793.0,0.33811111]
[1729551424012,0.005,67794.0,67793.0,0.34232723]
[1729551426468,0.005,67794.0,67793.0,0.34532723]
[1729551427113,0.005,67794.0,67793.0,0.33427527]
[1729551427539,0.005,67794.0,67793.0,0.33510227]
[1729551428379,0.04401281,67795.0,67794.0,0.147505]
[1729551428615,0.04401281,67805.0,67802.0,0.294975]
[1729551428836,0.04401281,67805.0,67804.0,0.325583]
[1729551429077,0.04901281,67807.0,67805.0,0.147481]
[1729551429305,0.005,67807.0,67806.0,0.14895915]
[1729551429560,0.04902203,67807.0,67806.0,0.14895915]
[1729551429768,0.04902203,67807.0,67806.0,0.15316416]
[1729551430211,0.04402203,67807.0,67806.0,0.15316416]
[1729551430433,0.04402203,67809.0,67808.0,0.147475]
[1729551430653,0.04902203,67809.0,67808.0,0.14895915]
[1729551430909,0.005,67809.0,67808.0,0.14895915]
[1729551431116,0.04902203,67809.0,67808.0,0.15316416]
[1729551431346,0.005,67809.0,67808.0,0.15316416]
[1729551431794,0.005,67809.0,67808.0,0.15516416]
[1729551432236,0.005,67809.0,67808.0,0.15616416]
[1729551436263,0.12024026,67809.0,67808.0,0.15616416]
[1729551436535,0.04402203,67812.0,67809.0,0.294945]
[1729551436781,0.06768704,67813.0,67809.0,0.294945]
[1729551436782,0.11689426,67813.0,67811.0,0.294937]
[1729551436993,0.11689426,67813.0,67812.0,0.29642515]
[1729551437206,0.11689426,67813.0,67812.0,0.30059266]
[1729551437864,0.11989426,67813.0,67812.0,0.30059266]
[1729551438335,0.11689426,67813.0,67812.0,0.30059266]
[1729551438790,0.11689426,67813.0,67812.0,0.15312666]
[1729551439261,0.11989426,67813.0,67812.0,0.30059266]
[1729551439450,0.12289426,67813.0,67812.0,0.30059266]
[1729551439968,0.12289426,67813.0,67812.0,0.15312666]
[1729551440406,0.007654,67813.0,67812.0,0.30059266]
[1729551440634,0.12289426,67813.0,67812.0,0.30059266]
[1729551447363,0.007654,67813.0,67812.0,0.30059266]
[1729551447540,0.007654,67813.0,67812.0,0.15312666]
[1729551448148,0.12289426,67813.0,67812.0,0.15312666]
[1729551448360,0.007654,67813.0,67812.0,0.30059266]
[1729551449249,0.001654,67813.0,67812.0,0.30059266]
[1729551449481,0.26735826,67813.0,67812.0,0.15312666]
[1729551449707,0.12089426,67813.0,67812.0,0.15512666]
[1729551450574,0.12089426,67813.0,67812.0,0.15312666]
[1729551450575,0.11989426,67813.0,67812.0,0.15312666]
[1729551450791,0.11989426,67813.0,67812.0,0.15412666]
[1729551451233,0.11689426,67813.0,67812.0,0.15412666]
[1729551451700,0.11789426,67813.0,67812.0,0.16412666]
[1729551452160,0.11689426,67813.0,67812.0,0.15412666]
[1729551452380,0.11689426,67813.0,67812.0,0.15812666]
[1729551452601,0.11689426,67813.0,67812.0,0.15712666]
[1729551452852,0.11789426,67813.0,67812.0,0.15912666]
[1729551454940,0.12289426,67813.0,67812.0,0.15912666]
[1729551455155,0.11789426,67813.0,67812.0,0.15912666]
[1729551456033,0.002654,67813.0,67812.0,0.15912666]
[1729551456247,0.002654,67813.0,67812.0,0.33032666]
[1729551460243,0.002654,67813.0,67812.0,0.23512666]
[1729551461384,0.007654,67813.0,67812.0,0.23512666]
[1729551463873,0.002654,67813.0,67812.0,0.23512666]
[1729551465692,0.007654,67813.0,67812.0,0.23512666]
[1729551466591,0.002654,67813.0,67812.0,0.23512666]
[1729551466795,0.002654,67813.0,67812.0,0.38259266]
[1729551472708,0.002654,67813.0,67812.0,0.23512666]
[1729551472924,0.002654,67813.0,67812.0,0.15912666]
[1729551473203,0.002654,67813.0,67812.0,0.69913292]
[1729551473419,0.002654,67813.0,67812.0,0.78864213]
[1729551473629,0.002654,67813.0,67812.0,0.79493034]
[1729551473854,0.002654,67813.0,67812.0,0.75480792]
[1729551474074,0.001654,67815.0,67814.0,0.264462]
[1729551474285,0.001654,67815.0,67814.0,0.58572115]
[1729551474495,0.001654,67815.0,67814.0,0.58983546]
[1729551477142,0.002654,67815.0,67814.0,0.60283546]
[1729551477372,0.002654,67815.0,67814.0,0.61483546]
[1729551477373,0.003654,67815.0,67814.0,0.61483546]
[1729551478561,0.003654,67815.0,67814.0,0.61283546]
[1729551488551,0.003654,67815.0,67814.0,0.61483546]
[1729551494254,0.003654,67815.0,67814.0,0.61283546]
[1729551510402,0.003654,67815.0,67814.0,0.61483546]
[1729551512855,0.003654,67815.0,67814.0,0.61283546]
[1729551521919,0.003654,67815.0,67814.0,0.44053546]
[1729551522830,0.11889426,67815.0,67814.0,0.42553546]
[1729551523051,0.29519426,67815.0,67814.0,0.17807346]
[1729551523501,0.179954,67815.0,67814.0,0.17807346]
[1729551523944,0.179954,67815.0,67814.0,0.17395915]
[1729551524161,0.178954,67815.0,67814.0,0.1659002]
[1729551524389,0.327414,67815.0,67814.0,0.1729002]
[1729551524664,0.22898741,67815.0,67814.0,0.1729002]
[1729551524889,0.22898741,67815.0,67814.0,0.14895915]
[1729551524890,0.25000412,67815.0,67814.0,0.14895915]
[1729551525112,0.25000412,67815.0,67814.0,0.15495915]
[1729551525347,0.34768496,67815.0,67814.0,0.15595915]
[1729551525564,0.39849753,67815.0,67814.0,0.16295915]
[1729551525786,0.332414,67815.0,67814.0,0.007]
[1729551526008,0.1813,67814.0,67813.0,0.000827]
[1729551526224,0.39484513,67814.0,67813.0,0.14978615]
[1729551526438,0.37279705,67814.0,67813.0,0.14978615]
[1729551527316,0.22533505,67814.0,67813.0,0.14978615]
[1729551527537,0.06873713,67815.0,67813.0,0.14978615]
[1729551527538,0.001654,67815.0,67814.0,0.152462]
[1729551527744,0.001654,67815.0,67814.0,0.40142115]
[1729551528044,0.001654,67815.0,67814.0,0.4053622]
[1729551529272,0.003654,67815.0,67814.0,0.4243622]
[1729551535164,0.003654,67815.0,67814.0,0.4302652]
[1729551540321,0.003654,67815.0,67814.0,0.4322652]
[1729551540824,0.003654,67815.0,67814.0,0.4302652]
[1729551551583,0.003654,67815.0,67814.0,0.4386017]
[1729551563064,0.003654,67815.0,67814.0,0.4406017]
[1729551563281,0.003654,67815.0,67814.0,0.4386017]
[1729551572897,0.003654,67815.0,67814.0,0.4406017]
[1729551574271,0.003654,67815.0,67814.0,0.4386017]
[1729551574495,0.003654,67815.0,67814.0,0.4406017]
[1729551582498,0.003654,67815.0,67814.0,0.5411017]
[1729551582720,0.003654,67815.0,67814.0,0.65179707]
[1729551582926,0.003654,67815.0,67814.0,0.5411017]
[1729551583344,0.002654,67815.0,67814.0,0.6107017]
[1729551583553,0.002654,67815.0,67814.0,0.72134444]
[1729551583771,0.002654,67815.0,67814.0,0.8335847]
[1729551583996,0.002654,67815.0,67814.0,1.42494196]
[1729551584187,0.002654,67815.0,67814.0,1.3097017]
[1729551584408,0.003654,67815.0,67814.0,1.43032529]
[1729551584614,0.003654,67815.0,67814.0,1.41832529]
[1729551584834,0.003654,67815.0,67814.0,1.43232529]
[1729551586389,0.003654,67815.0,67814.0,1.3217017]
[1729551589443,0.003654,67815.0,67814.0,1.41016381]
[1729551590334,0.003654,67815.0,67814.0,1.3217017]
[1729551590786,0.003654,67815.0,67814.0,1.41015413]